Cogmind - Beta 14 @@@ ROGUE MODE // 2024.11.09 @ 07:33:16 Player: Fangrelle Result: Destroyed by Autobeam Turret with Autobeam Performance ------------- Evolutions (0) 0 Regions Visited (2) 400 Robots Destroyed (37) 185 Value Destroyed (1121) 1121 Prototype IDs (1) 20 Alien Tech Used (0) 0 Bonus (0) 0 TOTAL SCORE: 1726 Bonus ------- None Cogmind --------- Core Integrity 0/250 Matter 108/300 Energy 46/100 System Corruption 1% Temperature Cool (12) Movement Core (400) Ox7 Location -10/Subcaves Parts ------- > --- POWER (1+1) ------ (None) > --- PROPULSION (2+1) - (None) > --- UTILITY (2+1) ---- Large Storage Unit Rainbow Chip > --- WEAPON (2+1) ----- Battle Rifle Battle Rifle > --- INVENTORY (15) --- Small Storage Unit Medium Matter Pod (100) Medium Matter Pod (97) Structural Scanner Hardened Light Armor Plating Hardened Light Armor Plating Hardened Light Armor Plating Makeshift Laser Subdweller Beam Cannon Light Assault Rifle Grenade Launcher Datajack Plasma Cutter Multitool Makeshift Spear Peak State ------------ > --- POWER ------------ Light Ion Engine > --- PROPULSION ------- Wheel > --- UTILITY ---------- Large Storage Unit Rainbow Chip > --- WEAPON ----------- Subdweller Beam Cannon Battle Rifle > --- INVENTORY -------- Small Storage Unit Medium Matter Pod Medium Matter Pod Structural Scanner Hardened Light Armor Plating Hardened Light Armor Plating Makeshift Laser Light Assault Rifle Battle Rifle Grenade Launcher Datajack Plasma Cutter Multitool Makeshift Spear [Rating: 22] Favorites ----------- Power Light Ion Engine Engine Light Ion Engine Propulsion Aluminum Leg Treads Light Treads Leg Aluminum Leg Wheel Wheel Utility Hardened Light Armor Plating Storage Large Storage Unit Processor Rainbow Chip Protection Hardened Light Armor Plating Weapon EM Pulse Gun Energy Gun EM Pulse Gun Energy Cannon Subdweller Beam Cannon Ballistic Gun Light Assault Rifle Launcher Grenade Launcher Build | -11 -10 -10 ------- Run | Yrd Mat Sub Slots Evolved . | . . . Power . | . . . Propulsion . | . . . Utility . | . . . Weapon . | . . . Parts Attached 30 | 7 11 12 Power 2 | 1 1 . Engine 2 | 1 1 . Core . | . . . Reactor . | . . . Propulsion 7 | 2 4 1 Treads 2 | 2 . . Leg 3 | . 3 . Wheel 2 | . 1 1 Hover . | . . . Flight . | . . . Utility 5 | 1 3 1 Device . | . . . Storage 2 | 1 1 . Processor 1 | . . 1 Hackware . | . . . Protection 2 | . 2 . Artifact . | . . . Weapon 16 | 3 3 10 Energy Gun 5 | 3 2 . Energy Cannon 1 | . . 1 Ballistic Gun 7 | . 1 6 Ballistic Cannon . | . . . Launcher 3 | . . 3 Special Weapon . | . . . Impact Weapon . | . . . Slashing Weapon . | . . . Piercing Weapon . | . . . Special Melee Weapon . | . . . Unidentified Prototypes 1 | . . 1 Parts Lost 10 | . 6 4 Power 2 | . 1 1 Propulsion 5 | . 2 3 Utility 1 | . 1 . Weapon 2 | . 2 . Highest Loss Streak 3 | . 3 2 To Critical Strikes . | . . . Average Slot Usage (%) 86 | . 88 83 Engine 13 | . 13 13 Treads 7 | . 12 . Leg 13 | . 14 12 Wheel 1 | . . 2 Storage 13 | . 14 13 Protection 10 | . 9 12 Energy Gun 8 | . 14 . Energy Cannon 4 | . . 10 Ballistic Gun 10 | . 7 15 Peak Build Rating 22 | 6 8 22 Average Rating 8 | 4 7 11 On Entrance 4 | . 6 8 Naked Turns . | . . . Heaviest Build 38 | 14 31 38 Greatest Support 40 | 40 40 20 Greatest Overweight (x) 10 | . 5 10 Average Overweight (x) 1 | . . 2 Largest Inventory Capacity 15 | 8 15 15 Average Capacity 12 | 7 11 15 Most Carried 15 | 4 10 15 Average Carried 9 | 2 7 11 Final Capacity 15 | 8 15 15 Final Carried 15 | 4 10 15 Class Distribution -------------------- 100% | Mutant Dominant Class ---------------- Mutant | -10/Materials Mutant | -10/Subcaves Resources | -11 -10 -10 ----------- Run | Yrd Mat Sub Matter Collected 802 | 214 404 184 Remotely . | . . . Salvage Created 1239 | . 753 486 Parts 82 | . 50 32 Haulers Intercepted 1 | . 1 . Recyclers Shooed . | . . . Parts Field Recycled . | . . . Retrieved Matter . | . . . Parts Self-Destructed 9 | . . 9 Prevented . | . . . Kills | -11 -10 -10 ------- Run | Yrd Mat Sub Combat Hostiles Destroyed 32 | . 16 16 Guns 20 | . 14 6 Cannons 2 | . . 2 AOE 10 | . 2 8 Classes Destroyed 8 | . 5 3 Builder 2 | . 2 . Hauler 1 | . 1 . Watcher 2 | . 2 . Swarmer 6 | . 3 3 Grunt 14 | . 13 1 Sentry 1 | . . 1 Cobbler 1 | . . 1 Subdweller 11 | . . 11 Best Kill Streak 6 | . 5 6 Combat Bots Only 6 | . 4 6 Max Kills in Single Turn 4 | . 4 1 Gunslinging . | . . . Exploded 2 | . 2 1 Melee . | . . . Uniques/NPCs Destroyed . | . . . Combat | -11 -10 -10 -------- Run | Yrd Mat Sub Hostile Shots Fired 153 | . 104 49 Missed 48 | . 30 18 Damage Taken 1497 | . 918 579 Core 253 | . 115 138 Absorbed by Shields . | . . . Core Remaining (%) 100 | 100 . . Volleys Fired 124 | . 81 43 Largest 2 | . 2 2 Hottest 110 | . 80 110 Shots Fired 200 | . 115 85 Gun 151 | . 115 36 Cannon 31 | . . 31 Launcher 18 | . . 18 Special . | . . . Kinetic 69 | . 33 36 Thermal 40 | . 9 31 Explosive 18 | . . 18 Electromagnetic 73 | . 73 . Robot Hit Streak 9 | . 9 9 Robot Miss Streak 4 | . 4 2 Penetration Max . | . . . Secondary Targets . | . . . Shots Hit Robots 117 | . 68 49 Core Hits 62 | . 34 28 Critical Kills 1 | . . 1 Critical Parts Destroyed . | . . . Critical Strikes 2 | . 1 1 Destroy 1 | . . 1 Corrupt 1 | . 1 . Melee Attacks . | . . . Impact . | . . . Slashing . | . . . Piercing . | . . . Sneak Attacks . | . . . Combat Hostiles . | . . . Follow-up Attacks . | . . . Damage Inflicted 2721 | . 1007 1714 Guns 1102 | . 807 295 Cannons 407 | . . 407 Explosions 1212 | . 200 1012 Melee . | . . . Ramming . | . . . Kinetic 429 | . 134 295 Thermal 657 | . 250 407 Explosive 1012 | . . 1012 Electromagnetic 623 | . 623 . Impact . | . . . Slashing . | . . . Piercing . | . . . Highest Corruption 1 | . 1 1 Average Corruption 1 | . 1 1 Corruption Purged . | . . . Corruption Blocked . | . . . Effects 14 | . 8 6 Message Errors 4 | . 1 3 Matter Fused 2 | . 2 . Heat Flow Errors 3 | . 2 1 Energy Discharges 3 | . 1 2 Data Loss (minor) 2 | . 2 . Overload Shots . | . . . Overflow Damage 11 | . . 11 Projectiles . | . . . Explosions 11 | . . 11 Melee . | . . . Knockbacks . | . . . Impact . | . . . Kinetic . | . . . Secondary . | . . . Self-Inflicted Damage 123 | . 31 92 Shots 6 | . 1 5 Rammed . | . . . Targets Rammed . | . . . Kicked . | . . . Crushed . | . . . Highest Temperature 334 | . 334 114 Average Temperature 94 | . 108 27 Received Heat Transfer 606 | . 492 114 Effects 3 | . 3 . Interference 2 | . 2 . Short Circuit 1 | . 1 . Siege Activations . | . . . Robots Corrupted 1 | . 1 . Combat Hostiles . | . . . Parts Fried 3 | . 3 . Impact Corruptions . | . . . Robots Melted . | . . . Combat Hostiles . | . . . Parts Melted 1 | . . 1 Heat Transferred 953 | . 398 555 Parts Sabotaged . | . . . Parts Stolen . | . . . Parts Stripped . | . . . Power Chain Reactions 2 | . 2 . Alert | -11 -10 -10 ------- Run | Yrd Mat Sub Peak Influence 346 | . 346 . Initial . | . . . Average 183 | . 194 . Maximum Alert Level 1 | . 1 . Low Security (%) 54 | 100 51 . Level 1 45 | . 48 . Level 2 . | . . . Level 3 . | . . . Level 4 . | . . . Level 5 . | . . . High Security . | . . . Max Security . | . . . Squads Dispatched 4 | . 4 . Investigation 4 | . 4 . Extermination . | . . . Reinforcement . | . . . Assault . | . . . Garrison . | . . . Intercept . | . . . Searches Triggered . | . . . Construction Impeded . | . . . Haulers Reinforced . | . . . Active Scanning Responses . | . . . Cargo Convoy Interrupts . | . . . Stealth | -11 -10 -10 --------- Run | Yrd Mat Sub Distress Signals 1 | . 1 . Communications Jammed . | . . . Distress Signals . | . . . Times Spotted 43 | . 22 21 Peak Tracking Total 5 | . 5 4 Tactical Retreats 5 | . 3 2 Traps | -11 -10 -10 ------- Run | Yrd Mat Sub Traps Triggered 4 | . 4 . Indirectly . | . . . Trap Hack Attempts . | . . . Triggered . | . . . Disarmed . | . . . Reprogrammed . | . . . Reused . | . . . Traps Extracted . | . . . Installed . | . . . Triggered . | . . . Machines | -11 -10 -10 ---------- Run | Yrd Mat Sub Machines Disabled 4 | . 3 1 Max in Single Turn 1 | . 1 1 Machines Repaired . | . . . Machines Dismantled . | . . . Machines Sabotaged . | . . . Overloaded Fab Kills . | . . . Hacking | -11 -10 -10 --------- Run | Yrd Mat Sub Machines Accessed 6 | . 5 1 Terminals 4 | . 4 . Fabricators . | . . . Repair Stations . | . . . Recycling Units 1 | . 1 . Scanalyzers . | . . . Garrison Access . | . . . Total Hacks 15 | . 12 3 Successful 7 | . 4 3 Failed 8 | . 8 . Catastrophic 3 | . 3 . Database Lockouts . | . . . Manual 12 | . 12 . Terminals 10 | . 10 . Fabricators . | . . . Repair Stations . | . . . Recycling Units 2 | . 2 . Scanalyzers . | . . . Garrison Access . | . . . Terminal Hacks 3 | . . 3 Record 3 | . . 3 Fabricator Hacks . | . . . Repair Station Hacks . | . . . Recycling Unit Hacks . | . . . Scanalyzer . | . . . Garrison Access Hacks . | . . . Unauthorized Hacks 4 | . 4 . Terminals 3 | . 3 . Botnet 2 | . 2 . Disrupt 1 | . 1 . Fabricators . | . . . Repair Stations . | . . . Recycling Units 1 | . 1 . Tunnel 1 | . 1 . Scanalyzers . | . . . Garrison Access . | . . . Data Cores Recovered . | . . . Used . | . . . Hacking Detections 5 | . 5 . Full Trace Events 2 | . 2 . Feedback Events . | . . . Feedback Blocked . | . . . Robot Schematics Acquired . | . . . Robots Built . | . . . Authchips . | . . . Time . | . . . Total Robot Build Rating . | . . . Part Schematics Acquired . | . . . Parts Built . | . . . Authchips . | . . . Time . | . . . Total Part Build Rating . | . . . Parts Repaired . | . . . Time . | . . . Parts Recycled . | . . . Recycled Matter . | . . . Retrieved Matter . | . . . Retrieved Components . | . . . Parts Scanalyzed . | . . . Part Schematics Acquired . | . . . Parts Damaged . | . . . Bothacking | -11 -10 -10 ------------ Run | Yrd Mat Sub Used RIF Installer . | . . . Robots Hacked . | . . . Non-combat . | . . . Combat . | . . . Robot Hacks Applied . | . . . Relay Couplers Released . | . . . Fabnet Peak Effective % . | . . . Robots Rewired . | . . . Allies Hacked . | . . . Hacks Repelled . | . . . Allies | -11 -10 -10 -------- Run | Yrd Mat Sub Total Allies . | . . . Largest Group . | . . . Highest-Rated Group . | . . . Highest-Rated Ally . | . . . Total Orders . | . . . Ally Attacks . | . . . Total Damage . | . . . Kills . | . . . Allies Corrupted . | . . . Allies Melted . | . . . Intel | -11 -10 -10 ------- Run | Yrd Mat Sub Robot Analysis Total . | . . . Derelict Logs Recovered . | . . . Drone Launches . | . . . Drone Recoveries . | . . . Exploration | -11 -10 -10 ------------- Run | Yrd Mat Sub Turns Passed 2593 | 86 1474 1033 Spaces Moved 1109 | 50 670 389 Core 10 | 6 2 2 Treads 355 | 44 311 . Legs 602 | . 357 245 Wheels 142 | . . 142 Hover . | . . . Flight . | . . . Fastest Speed 50 | 50 120 125 Average Speed 192 | 146 175 228 Slowest Speed 550 | 160 300 550 Overloaded Moves . | . . . Propulsion Burnouts . | . . . Robots Hopped . | . . . Cave-ins Triggered . | . . . Exploration Rate (%) 36 | 5 71 33 Regions Visited 2 Branch Regions 1 Pre-discovered Areas 1 | . 1 . Known Exits Taken . | . . . Unknown Exits Taken 2 | 1 1 . Scrap Searched . | . . . Spaces Dug . | . . . Terrain Destroyed 98 | . 4 94 Melee . | . . . Projectile 4 | . . 4 AOE 94 | . 4 90 Terrain Rammed . | . . . Walls Destroyed . | . . . Machines Disabled . | . . . Actions | -11 -10 -10 --------- Run | Yrd Mat Sub Total 1370 | 60 860 450 Wait 87 | . 87 . Move 1107 | 49 669 389 Hop . | . . . Pick Up 16 | 3 8 5 Fast Attach 15 | 7 7 1 Attach 5 | . 3 2 Detach 1 | 1 . . Swap 10 | . 1 9 Drop 5 | . 4 1 Fire 124 | . 81 43 Melee . | . . . Ram . | . . . Kick . | . . . Crush . | . . . Escape Stasis . | . . . Rewire . | . . . Trap . | . . . Miscellaneous . | . . . Route ------- -11/Scrapyard -10/Materials (discovered 4 exits: [*Mat x2] / [*Min] / *Sub) -10/Subcaves (discovered 2 exits: [*Mat] / Rec) History --------- Turn | Location | Event 55 | -11/Scrapyard | Discovered new exit (range 15) 87 | -11/Scrapyard | Entered Materials 316 | -10/Materials | Build established: Mutant 510 | -10/Materials | Discovered new exit (range 16) 612 | -10/Materials | Discovered new exit (range 16) 661 | -10/Materials | Discovered new exit (range 10) 766 | -10/Materials | Lost 3 parts (1p1n1w) 1550 | -10/Materials | Discovered new exit (range 7) 1561 | -10/Materials | Entered Subcaves 1712 | -10/Subcaves | Core integrity fell below 50% 1738 | -10/Subcaves | Core integrity fell below 20% 1895 | -10/Subcaves | Discovered new exit (range 9) 1938 | -10/Subcaves | Visited Clippyterm 1948 | -10/Subcaves | Identified exit to Recycling 2442 | -10/Subcaves | A Subdweller sparked back to life 2442 | -10/Subcaves | A Subdweller sparked back to life 2478 | -10/Subcaves | Found Prototype Processor 2478 | -10/Subcaves | Identified Rainbow Chip 2479 | -10/Subcaves | Attached Rainbow Chip, gained temporary slots: Power, Propulsion, Utility, Weapon 2594 | -10/Subcaves | Destroyed by Autobeam Turret with Autobeam Last Messages --------------- 02481_ Acquired Hrd. Light Armor Plating. 02561_ Wheel destroyed. 02561_ Destroyed Lgt. Ion Engine. 02563_ S-10 Pest destroyed. 02563_ Lgt. Ion Engine destroyed. 02564_ Destroyed Flight Unit. 02564_ S-10 Pest destroyed. 02565_ Aluminum Leg fries itself beyond repair. 02567_ Y-45 Defender destroyed. 02567_ Machine disabled. 02568_ Flight Unit fries itself beyond repair. 02569_ The unstable cave ceiling collapses. 02573_ Disposable Heat Sink melted. 02573_ WD-N9A(R) destroyed. 02575_ The unstable cave ceiling collapses. 02579_ S-10 Pest destroyed. 02582_ Sub. Beam Cannon shoots sparks and powers down. 02582_ S-10 Pest destroyed. 02585_ System corrupted: Energy discharge (-22). 02585_ The unstable cave ceiling collapses. Map ----- +----------------------------------------------------+ | ?????????????????????????????????????????????????? | | ?????????????????????????????????????????????????? | | ?????????????????????????????????????????????????? | | ?????????????????????????????????????????????????? | | ?????????????????????????????????????????????????? | | ?????????????????????????????????????????????????? | | ?????????????????????????????????????????????????? | | ?????????????????????????????????????????????????? | | ?????????????????????????????????????????????????? | | ??????????????????????????# ?????????????????????? | | ????????????????????????? ?????????????????????? | | ????????????????????????? ?????????????????????? | | ????????????????????????? #### ???????????????? | | ????????????????????????? " ?????????????? | | ????????????????????????? ????????????? | | ????????????????????????? # ????????????? | | ????????????????????????? t t?????????????? | | ????????????????????????? % # ??????????????? | | ????????????????????????? % ???????????????? | | ?????????????????????????#* ?>??????????????? | | ?????????????????????????# #?????????????????? | | ?????????????????????????# #??????????????????? | | ??????????????????????##### #??????????????????? | | ?????????????????????## #??????????????????? | | ?????????????????????# #???????????????????? | | ?????????????????????# @ ###???????????????????? | | ?????????????????????## #?????????????????????? | | ?????????????????????#; #?????????????????????? | | ???????????????" ??## #?????????????????????? | | ??????????????"" ### ##????????????????????? | | ??????????????? # ##???????????????????? | | ???????????????"""" %* ##??????????????????? | | ??????????????##"""" ## #??????????????????? | | ??????????????# # ## #??????????????????? | | ??????????????## # ##???????########### | | ??????????????## ## #?####### !## # | | ??????????????# ### #?# &!&!* | | ??????????????## # ###??# & ! | | ?????????#????# ##????### &=!*%! ## ## | | ?????????# ???## # ###???????#" [&######? | | ????????## ##??# ## #????????## # #???# | | ????????# ??# ####? #??####### " # ##?## | | ?????????# #?# #????# #?## ## # ### | | ??????????# ## ##????# ### ### ## | | ??????????# ####?# ## #?## ### | | ??????????# ## ### ### ## ## | | ??????????# ### ## ## ### ## | | ??????????# ##?## ## ### | | ?????????# # ##???# # # ##?? | | ????????# ## #????# ######### ##??? | +----------------------------------------------------+ Best States ------------- Heat Dissipation 25 Energy Generation 10 Energy Capacity 250 Matter Stores 300 Matter Capacity 300 Sight Range 16 Terrain Scan Density 10 Armor Coverage 150 Evasion (%) 50 Recoil Reduction 2 Item Schematics ----------------- None Robot Schematics ------------------ None Fabricated ------------ Nothing Alien Tech Used ----------------- None Achievements -------------- None Challenges ------------ None Game ------ Seed NovaRingMachine Manual? 0 Play Time 00:13:40 Cumulative 28.1 hours Start 2024.11.09 @ 07:21:08 End 2024.11.09 @ 07:33:16 Sessions 1 Manual Loads 0 Difficulty Rogue Special Mode None Game No. 58 Rogue 58 Adventurer 0 Explorer 0 Win Type - Total 0 Types 0/0/0/0/0/0/0/0/0 Lore% 22 Gallery% 24 Achievement% 28 Wizard Run 0 Options --------- Layout 0 ASCII 0 Keyboard 0 Movement Mouse Keybinds 0 Fullscreen 1 Font 24/Smallcaps Map View 91x25 Zoom Use 96% Tactical HUD 1 Map Filters NONE Filters NONE Steam 1 RUN: 9fb4171b-cbd2-470b-916c-1353d4394494